fUST/lending_fUST_20250428
["ID","MTS","AMOUNT","RATE_DAILY","PERIOD"]
[359232009,1745854247175,-2367.77,0.00021917,2]
[359232010,1745854247184,-814.58,0.00021917,2]
[359232011,1745854247193,-400.0,0.00021917,2]
[359232012,1745854247203,-400.0,0.00021917,2]
[359232013,1745854247213,-502.52843099,0.00021917,2]
[359232014,1745854247223,-400.0,0.00021917,2]
[359232015,1745854247232,-501.04105917,0.00021917,2]
[359232016,1745854247242,-400.0,0.00021917,2]
[359232017,1745854247251,-490.2,0.00021917,2]
[359232018,1745854247260,-400.0,0.00021917,2]
[359232019,1745854247270,-510.03586067,0.00021917,2]
[359232020,1745854247279,-400.0,0.00021917,2]
[359232021,1745854247289,-400.0,0.00021917,2]
[359232022,1745854247298,-4290.17,0.00021917,2]
[359232023,1745854247312,-400.0,0.00021917,2]
[359232024,1745854247321,-400.0,0.00021917,2]
[359232025,1745854247331,-400.0,0.00021917,2]
[359232026,1745854247340,-400.0,0.00021917,2]
[359232027,1745854247351,-510.17087728,0.00021917,2]
[359232028,1745854247360,-433.09227156,0.00021917,2]
[359232029,1745854247370,-578.43,0.00021917,2]
[359232030,1745854247380,-400.0,0.00021917,2]
[359232031,1745854247389,-400.0,0.00021917,2]
[359232032,1745854247398,-2624.56,0.00021917,2]
[359232033,1745854247407,-400.0,0.00021917,2]
[359232034,1745854247417,-306.55474081,0.00021917,2]
[359232035,1745854247426,-400.0,0.00021917,2]
[359232036,1745854247437,-400.0,0.00021917,2]
[359232037,1745854247446,-400.0,0.00021917,2]
[359232038,1745854247456,-500.93150851,0.00021917,2]
[359232039,1745854247465,-400.0,0.00021917,2]
[359232040,1745854247474,-400.0,0.00021917,2]
[359232041,1745854247483,-400.0,0.00021917,2]
[359232042,1745854247492,-400.0,0.00021917,2]
[359232043,1745854247501,-400.0,0.00021917,2]
[359232044,1745854247510,-400.0,0.00021917,2]
[359232045,1745854247519,-400.0,0.00021917,2]
[359232046,1745854247528,-555.38,0.00021917,2]
[359232047,1745854247537,-166.0,0.00021918,2]
[359232048,1745854247546,-151.0,0.00021918,2]
[359232049,1745854247554,-151.0,0.00021918,2]
[359232050,1745854247563,-213.755846,0.00021918,2]
[359232051,1745854247571,-261.00240682,0.00021918,2]
[359232052,1745854247580,-1705.62088949,0.00021969,3]
[359232053,1745854247589,-500.0,0.00021973,2]
[359232054,1745854247598,-500.0,0.00021973,2]
[359232055,1745854247607,-500.0,0.00021973,2]
[359232056,1745854247616,-500.0,0.00021973,2]
[359232057,1745854247625,-500.0,0.00021973,2]
[359232058,1745854247634,-502.3738339,0.00021973,2]
[359232059,1745854247643,-500.0,0.00021973,2]
[359232060,1745854247651,-500.0,0.00021973,2]
[359232061,1745854247660,-500.0,0.00021973,2]
[359232062,1745854247669,-500.0,0.00021973,2]
[359232063,1745854247678,-500.0,0.00021973,2]
[359232064,1745854247687,-300.0,0.00021973,2]
[359232065,1745854247696,-500.0,0.00021973,2]
[359232066,1745854247706,-500.0,0.00021973,2]
[359232067,1745854247715,-500.0,0.00021973,2]
[359232068,1745854247723,-500.0,0.00021973,2]
[359232069,1745854247731,-500.0,0.00021973,2]
[359232070,1745854247740,-500.0,0.00021973,2]
[359232071,1745854247748,-561.9,0.00021978,2]
[359232072,1745854247757,-561.9,0.00021988,2]
[359232073,1745854247766,-300.92831777,0.00022084,2]
[359232074,1745854247775,-151.0,0.00022099,7]
[359232075,1745854247784,-154.827599,0.00022099,7]
[359232076,1745854247793,-154.827599,0.00022099,7]
[359232077,1745854247802,-151.0,0.00022099,2]
[359232078,1745854247811,-561.9,0.00022099,2]
[359232079,1745854247819,-561.9,0.00022099,2]
[359232080,1745854247829,-561.9,0.00022099,2]
[359232081,1745854247838,-561.9,0.00022099,2]
[359232082,1745854247847,-561.9,0.00022099,2]
[359232083,1745854247856,-561.9,0.00022099,2]
[359232084,1745854247865,-561.9,0.00022099,2]
[359232085,1745854247874,-561.9,0.00022099,2]
[359232086,1745854247883,-562.10910276,0.00022099,2]
[359232087,1745854247892,-43356.22039134,0.00022099,2]
[359232088,1745854247900,-100000.0,0.000221,2]
[359232089,1745854247909,-151.0,0.000221,7]
[359232090,1745854247918,-151.0,0.000221,7]
[359232091,1745854247927,-154.827599,0.000221,7]
[359232092,1745854247938,-154.827599,0.000221,7]
[359232093,1745854247947,-263.31041,0.000221,2]
[359232094,1745854247957,-291.777561,0.000221,2]
[359232095,1745854247966,-291.777561,0.000221,2]
[359232096,1745854247975,-500.0,0.00022173,2]
[359232097,1745854247984,-500.0,0.00022173,2]
[359232098,1745854247993,-500.0,0.00022173,2]
[359232099,1745854248002,-500.0,0.00022173,2]
[359232100,1745854248011,-340.57265342,0.00022173,2]
[359232101,1745854248020,-500.0,0.00022173,2]
[359232102,1745854248030,-500.0,0.00022173,2]
[359232103,1745854248039,-500.0,0.00022173,2]
[359232104,1745854248048,-500.0,0.00022173,2]
[359232105,1745854248058,-500.0,0.00022173,2]
[359232106,1745854248067,-500.0,0.00022173,2]
[359232107,1745854248076,-500.0,0.00022173,2]
[359232108,1745854248085,-500.0,0.00022173,2]
[359232109,1745854248095,-500.0,0.00022173,2]
[359232110,1745854248103,-1005.88,0.0002219,2]
[359232111,1745854248112,-575.67,0.0002219,2]
[359232112,1745854248122,-5746.96,0.0002219,2]
[359232113,1745854248131,-230.09552011,0.00022191,2]
[359232114,1745854248140,-400.0,0.00022191,2]
[359232115,1745854248149,-400.0,0.00022191,2]
[359232116,1745854248159,-400.0,0.00022191,2]
[359232117,1745854248168,-400.0,0.00022191,2]
[359232118,1745854248177,-400.0,0.00022191,2]
[359232119,1745854248187,-151.0,0.00022191,7]
[359232120,1745854248196,-424.92864368,0.00022191,2]
[359232121,1745854248206,-400.0,0.00022191,2]
[359232122,1745854248215,-400.0,0.00022191,2]
[359232123,1745854248224,-400.0,0.00022191,2]
[359232124,1745854248234,-400.0,0.00022191,2]
[359232125,1745854248243,-400.0,0.00022191,2]
[359232126,1745854248252,-400.0,0.00022191,2]
[359232127,1745854248261,-400.0,0.00022191,2]
[359232128,1745854248271,-400.0,0.00022191,2]
[359232129,1745854248280,-156.99801625,0.00022191,2]
[359232130,1745854248289,-161.07361962,0.00022191,2]
[359232131,1745854248299,-400.0,0.00022191,2]
[359232132,1745854248313,-400.0,0.00022191,2]
[359232133,1745854248323,-400.0,0.00022191,2]
[359232134,1745854248332,-446.98,0.00022191,2]
[359232135,1745854248342,-400.0,0.00022191,2]
[359232136,1745854248351,-420.9,0.00022191,2]
[359232137,1745854248361,-400.0,0.00022191,2]
[359232138,1745854248370,-455.03,0.00022191,2]
[359232139,1745854248380,-400.0,0.00022191,2]
[359232140,1745854248390,-400.0,0.00022191,2]
[359232141,1745854248401,-400.0,0.00022191,2]
[359232142,1745854248411,-642.33,0.00022191,2]
[359232143,1745854248421,-318.07043957,0.00022191,2]
[359232144,1745854248431,-427.15,0.00022191,2]
[359232145,1745854248441,-400.0,0.00022191,2]
[359232146,1745854248451,-400.0,0.00022191,2]
[359232147,1745854248461,-400.0,0.00022191,2]
[359232148,1745854248470,-400.0,0.00022191,2]
[359232149,1745854248479,-400.0,0.00022191,2]
[359232150,1745854248488,-400.0,0.00022191,2]
[359232151,1745854248498,-400.0,0.00022191,2]
[359232152,1745854248507,-400.0,0.00022191,2]
[359232153,1745854248517,-969.45,0.00022191,2]
[359232154,1745854248527,-400.0,0.00022191,2]
[359232155,1745854248536,-523.10194158,0.00022191,2]
[359232156,1745854248545,-400.0,0.00022191,2]
[359232157,1745854248555,-400.0,0.00022191,2]
[359232158,1745854248680,-400.0,0.00022191,2]
[359232159,1745854248690,-400.0,0.00022191,2]
[359232160,1745854248701,-471.74020427,0.00022191,2]
[359232161,1745854248712,-528.32,0.00022191,2]
[359232162,1745854248722,-1000.0,0.00022191,2]
[359232163,1745854248731,-400.0,0.00022191,2]
[359232164,1745854248741,-400.0,0.00022191,2]
[359232165,1745854248751,-400.0,0.00022191,2]
[359232166,1745854248761,-400.0,0.00022191,2]
[359232167,1745854248771,-400.0,0.00022191,2]
[359232168,1745854248781,-1000.0,0.00022191,2]
[359232169,1745854248790,-400.0,0.00022191,2]
[359232170,1745854248800,-400.0,0.00022191,2]
[359232171,1745854248809,-400.0,0.00022191,2]
[359232172,1745854248818,-400.0,0.00022191,2]
[359232173,1745854248827,-400.0,0.00022191,2]
[359232174,1745854248837,-400.0,0.00022191,2]
[359232175,1745854248846,-400.0,0.00022191,2]
[359232176,1745854248856,-400.0,0.00022191,2]
[359232177,1745854248866,-400.0,0.00022191,2]
[359232178,1745854248876,-400.0,0.00022191,2]
[359232179,1745854248885,-470.30660973,0.00022191,2]
[359232180,1745854248895,-408.21,0.00022191,2]
[359232181,1745854248904,-416.66,0.00022191,2]
[359232182,1745854248913,-400.0,0.00022191,2]
[359232183,1745854248923,-400.0,0.00022191,2]
[359232184,1745854248932,-400.0,0.00022191,2]
[359232185,1745854248941,-400.0,0.00022191,2]
[359232186,1745854248951,-400.0,0.00022191,2]
[359232187,1745854248961,-400.0,0.00022191,2]
[359232188,1745854248971,-400.0,0.00022191,2]
[359232189,1745854248980,-400.0,0.00022191,2]
[359232190,1745854248990,-440.06,0.00022191,2]
[359232191,1745854248999,-400.0,0.00022191,2]
[359232192,1745854249008,-400.0,0.00022191,2]
[359232193,1745854249017,-400.0,0.00022191,2]
[359232194,1745854249027,-400.0,0.00022191,2]
[359232195,1745854249038,-400.0,0.00022191,2]
[359232196,1745854249047,-400.0,0.00022191,2]
[359232197,1745854249057,-400.0,0.00022191,2]
[359232198,1745854249067,-400.0,0.00022191,2]
[359232199,1745854249077,-400.0,0.00022191,2]
[359232200,1745854249087,-400.0,0.00022191,2]
[359232201,1745854249097,-402.83,0.00022191,2]
[359232202,1745854249106,-400.0,0.00022191,2]
[359232203,1745854249116,-400.0,0.00022191,2]
[359232204,1745854249126,-400.0,0.00022191,2]
[359232205,1745854249136,-400.0,0.00022191,2]
[359232206,1745854249145,-400.0,0.00022191,2]
[359232207,1745854249155,-400.0,0.00022191,2]
[359232208,1745854249166,-400.0,0.00022191,2]
[359232209,1745854249176,-400.0,0.00022191,2]
[359232210,1745854249186,-400.0,0.00022191,2]
[359232211,1745854249195,-207.00238414,0.00022191,2]
[359232212,1745854249204,-400.0,0.00022191,2]
[359232213,1745854249214,-400.0,0.00022191,2]
[359232214,1745854249224,-173.76165168,0.00022191,2]
[359232215,1745854249233,-175.57457216,0.00022191,2]
[359232216,1745854249242,-400.0,0.00022191,2]
[359232217,1745854249251,-455.14,0.00022191,2]
[359232218,1745854249261,-400.0,0.00022191,2]
[359232219,1745854249270,-400.0,0.00022191,2]
[359232220,1745854249279,-864.1,0.00022191,2]
[359232221,1745854249289,-400.0,0.00022191,2]
[359232222,1745854249298,-400.0,0.00022191,2]
[359232223,1745854249307,-400.0,0.00022191,2]
[359232224,1745854249320,-400.0,0.00022191,2]
[359232225,1745854249329,-400.0,0.00022191,2]
[359232226,1745854249339,-400.0,0.00022191,2]
[359232227,1745854249349,-205.6724199,0.00022191,2]
[359232228,1745854249358,-400.0,0.00022191,2]
[359232229,1745854249367,-400.0,0.00022191,2]
[359232230,1745854249376,-400.0,0.00022191,2]
[359232231,1745854249385,-400.0,0.00022191,2]
[359232232,1745854249398,-400.0,0.00022191,2]
[359232233,1745854249408,-400.0,0.00022191,2]
[359232234,1745854249419,-400.0,0.00022191,2]
[359232235,1745854249429,-400.0,0.00022191,2]
[359232236,1745854249439,-400.0,0.00022191,2]
[359232237,1745854249449,-400.0,0.00022191,2]
[359232238,1745854249461,-400.0,0.00022191,2]
[359232239,1745854249471,-400.0,0.00022191,2]
[359232240,1745854249482,-400.0,0.00022191,2]
[359232241,1745854249494,-400.0,0.00022191,2]
[359232242,1745854249503,-984.61,0.00022191,2]
[359232243,1745854249513,-400.0,0.00022191,2]
[359232244,1745854249523,-400.0,0.00022191,2]
[359232245,1745854249534,-400.0,0.00022191,2]
[359232246,1745854249544,-221.8165968,0.00022191,2]
[359232247,1745854249555,-452.31131623,0.00022191,2]
[359232248,1745854249565,-400.0,0.00022191,2]
[359232249,1745854249575,-607.8,0.00022191,2]
[359232250,1745854249586,-400.0,0.00022191,2]
[359232251,1745854249597,-400.0,0.00022191,2]
[359232252,1745854249607,-400.0,0.00022191,2]
[359232253,1745854249617,-400.0,0.00022191,2]
[359232254,1745854249627,-400.0,0.00022191,2]
[359232255,1745854249637,-250.39994763,0.00022191,2]
[359232256,1745854249646,-400.0,0.00022191,2]
[359232257,1745854249657,-208.48936099,0.00022191,2]
[359232258,1745854249666,-400.0,0.00022191,2]
[359232259,1745854249676,-400.0,0.00022191,2]
[359232260,1745854249686,-408.33,0.00022191,2]
[359232261,1745854249695,-207.78616293,0.00022191,2]
[359232262,1745854249705,-400.0,0.00022191,2]
[359232263,1745854249719,-400.0,0.00022191,2]
[359232264,1745854249728,-1654.21,0.00022191,2]
[359232265,1745854249736,-400.0,0.00022191,2]
[359232266,1745854249746,-400.0,0.00022191,2]
[359232267,1745854249755,-400.0,0.00022191,2]
[359232268,1745854249764,-400.0,0.00022191,2]
[359232269,1745854249773,-400.0,0.00022191,2]
[359232270,1745854249783,-400.0,0.00022191,2]
[359232271,1745854249793,-212.57010811,0.00022191,2]
[359232272,1745854249803,-206.24348296,0.00022191,2]
[359232273,1745854249812,-222.17330324,0.00022191,2]
[359232274,1745854249822,-400.0,0.00022191,2]
[359232275,1745854249832,-400.0,0.00022191,2]
[359232276,1745854249841,-620.87,0.00022191,2]
[359232277,1745854249850,-400.0,0.00022191,2]
[359232278,1745854249860,-400.0,0.00022191,2]
[359232279,1745854249869,-400.0,0.00022191,2]
[359232280,1745854249879,-384.08889342,0.00022191,2]
[359232281,1745854249888,-152.63369306,0.00022191,2]
[359232282,1745854249898,-400.0,0.00022191,2]
[359232283,1745854249907,-481.88,0.00022191,2]
[359232284,1745854249917,-400.0,0.00022191,2]
[359232285,1745854249927,-400.0,0.00022191,2]
[359232286,1745854249936,-400.0,0.00022191,2]
[359232287,1745854249945,-2724.77,0.00022191,2]
[359232288,1745854249954,-400.0,0.00022191,2]
[359232289,1745854249967,-400.0,0.00022191,2]
[359232290,1745854249976,-400.0,0.00022191,2]
[359232291,1745854249985,-400.0,0.00022191,2]
[359232292,1745854249995,-454.9,0.00022191,2]
[359232293,1745854250005,-400.0,0.00022191,2]
[359232294,1745854250014,-247.82927315,0.00022191,2]
[359232295,1745854250023,-400.0,0.00022191,2]
[359232296,1745854250033,-400.0,0.00022191,2]
[359232297,1745854250042,-400.0,0.00022191,2]
[359232298,1745854250051,-590.23,0.00022191,2]
[359232299,1745854250062,-705.55,0.00022191,2]
[359232300,1745854250071,-214.32757266,0.00022191,2]
[359232301,1745854250080,-400.0,0.00022191,2]
[359232302,1745854250089,-479.9417993,0.00022191,2]
[359232303,1745854250099,-400.0,0.00022191,2]
[359232304,1745854250108,-400.0,0.00022191,2]
[359232305,1745854250118,-1309.2,0.00022191,2]
[359232306,1745854250127,-473.03,0.00022191,2]
[359232307,1745854250137,-167.35227657,0.00022191,2]
[359232308,1745854250147,-400.0,0.00022191,2]
[359232309,1745854250156,-400.0,0.00022191,2]
[359232310,1745854250165,-400.0,0.00022191,2]
[359232311,1745854250175,-400.0,0.00022191,2]
[359232312,1745854250184,-400.0,0.00022191,2]
[359232313,1745854250194,-400.0,0.00022191,2]
[359232314,1745854250203,-400.0,0.00022191,2]
[359232315,1745854250214,-400.0,0.00022191,2]
[359232316,1745854250223,-400.0,0.00022191,2]
[359232317,1745854250233,-237.24559685,0.00022191,2]
[359232318,1745854250242,-543.06232302,0.00022191,2]
[359232319,1745854250251,-400.0,0.00022191,2]
[359232320,1745854250260,-400.0,0.00022191,2]
[359232321,1745854250269,-400.0,0.00022191,2]
[359232322,1745854250278,-400.0,0.00022191,2]
[359232323,1745854250287,-400.0,0.00022191,2]
[359232324,1745854250398,-400.0,0.00022191,2]
[359232325,1745854250409,-849.7,0.00022191,2]
[359232326,1745854250420,-400.0,0.00022191,2]
[359232327,1745854250429,-400.0,0.00022191,2]
[359232328,1745854250438,-408.63,0.00022191,2]
[359232329,1745854250447,-432.02,0.00022191,2]
[359232330,1745854250456,-400.0,0.00022191,2]
[359232331,1745854250468,-224.2142523,0.00022191,2]
[359232332,1745854250478,-400.0,0.00022191,2]
[359232333,1745854250487,-400.0,0.00022191,2]
[359232334,1745854250497,-400.0,0.00022191,2]
[359232335,1745854250507,-400.0,0.00022191,2]
[359232336,1745854250516,-400.0,0.00022191,2]
[359232337,1745854250524,-404.48,0.00022191,2]
[359232338,1745854250533,-400.0,0.00022191,2]
[359232339,1745854250543,-400.0,0.00022191,2]
[359232340,1745854250552,-400.0,0.00022191,2]
[359232341,1745854250561,-688.37,0.00022191,2]
[359232342,1745854250570,-400.0,0.00022191,2]
[359232343,1745854250580,-400.0,0.00022191,2]
[359232344,1745854250589,-400.0,0.00022191,2]
[359232345,1745854250599,-400.0,0.00022191,2]
[359232346,1745854250608,-400.0,0.00022191,2]
[359232347,1745854250618,-400.0,0.00022191,2]
[359232348,1745854250627,-400.0,0.00022191,2]
[359232349,1745854250636,-400.0,0.00022191,2]
[359232350,1745854250646,-400.0,0.00022191,2]
[359232351,1745854250655,-203.47229792,0.00022191,2]
[359232352,1745854250665,-400.0,0.00022191,2]
[359232353,1745854250674,-400.0,0.00022191,2]
[359232354,1745854250685,-400.0,0.00022191,2]
[359232355,1745854250695,-452.1,0.00022191,2]
[359232356,1745854250704,-400.0,0.00022191,2]
[359232357,1745854250715,-213.10305611,0.00022191,2]
[359232358,1745854250724,-400.0,0.00022191,2]
[359232359,1745854250734,-400.0,0.00022191,2]
[359232360,1745854250743,-400.0,0.00022191,2]
[359232361,1745854250752,-515.38,0.00022191,2]
[359232362,1745854250761,-464.61,0.00022191,2]
[359232363,1745854250770,-400.0,0.00022191,2]
[359232364,1745854250780,-400.0,0.00022191,2]
[359232365,1745854250789,-400.0,0.00022191,2]
[359232366,1745854250799,-534.49,0.00022191,2]
[359232367,1745854250807,-201.73419925,0.00022191,2]
[359232368,1745854250817,-400.0,0.00022191,2]
[359232369,1745854250826,-400.0,0.00022191,2]
[359232370,1745854250835,-400.0,0.00022191,2]
[359232371,1745854250845,-400.0,0.00022191,2]
[359232372,1745854250854,-400.0,0.00022191,2]
[359232373,1745854250863,-400.0,0.00022191,2]
[359232374,1745854250872,-300.0,0.00022191,2]
[359232375,1745854250881,-500.14570658,0.00022191,2]
[359232376,1745854250890,-400.0,0.00022191,2]
[359232377,1745854250899,-400.0,0.00022191,2]
[359232378,1745854250908,-400.76,0.00022191,2]
[359232379,1745854250918,-1047.83,0.00022191,2]
[359232380,1745854250927,-152.189503,0.00022191,7]
[359232381,1745854250937,-400.0,0.00022191,2]
[359232382,1745854250946,-400.0,0.00022191,2]
[359232383,1745854250955,-400.0,0.00022191,2]
[359232384,1745854250966,-400.0,0.00022191,2]
[359232385,1745854250975,-400.0,0.00022191,2]
[359232386,1745854250984,-400.0,0.00022191,2]
[359232387,1745854250993,-400.0,0.00022191,2]
[359232388,1745854251002,-400.0,0.00022191,2]
[359232389,1745854251011,-400.0,0.00022191,2]
[359232390,1745854251020,-400.0,0.00022191,2]
[359232391,1745854251029,-400.0,0.00022191,2]
[359232392,1745854251038,-420.66,0.00022191,2]
[359232393,1745854251048,-400.0,0.00022191,2]
[359232394,1745854251056,-566.57,0.00022191,2]
[359232395,1745854251066,-400.0,0.00022191,2]
[359232396,1745854251075,-400.0,0.00022191,2]
[359232397,1745854251084,-222.87801103,0.00022191,2]
[359232398,1745854251093,-400.0,0.00022191,2]
[359232399,1745854251102,-558.44,0.00022191,2]
[359232400,1745854251112,-400.0,0.00022191,2]
[359232401,1745854251121,-207.80649314,0.00022191,2]
[359232402,1745854251131,-500.0,0.00022191,2]
[359232403,1745854251140,-400.0,0.00022191,2]
[359232404,1745854251150,-400.0,0.00022191,2]
[359232405,1745854251161,-400.0,0.00022191,2]
[359232406,1745854251171,-400.0,0.00022191,2]
[359232407,1745854251180,-400.0,0.00022191,2]
[359232408,1745854251189,-400.0,0.00022191,2]
[359232409,1745854251198,-400.0,0.00022191,2]
[359232410,1745854251207,-400.0,0.00022191,2]
[359232411,1745854251219,-400.0,0.00022191,2]
[359232412,1745854251228,-400.0,0.00022191,2]
[359232413,1745854251238,-400.0,0.00022191,2]
[359232414,1745854251247,-467.84450887,0.00022191,2]
[359232415,1745854251257,-412.01,0.00022191,2]
[359232416,1745854251266,-248.3326286,0.00022191,2]
[359232417,1745854251275,-400.0,0.00022191,2]
[359232418,1745854251285,-545.22,0.00022191,2]
[359232419,1745854251295,-400.0,0.00022191,2]
[359232420,1745854251305,-400.0,0.00022191,2]
[359232421,1745854251316,-400.0,0.00022191,2]
[359232422,1745854251326,-614.02,0.00022191,2]
[359232423,1745854251335,-437.31,0.00022191,2]
[359232424,1745854251344,-400.0,0.00022191,2]
[359232425,1745854251355,-400.0,0.00022191,2]
[359232426,1745854251365,-500.0,0.00022191,2]
[359232427,1745854251375,-400.0,0.00022191,2]
[359232428,1745854251385,-400.0,0.00022191,2]
[359232429,1745854251394,-400.0,0.00022191,2]
[359232430,1745854251406,-801.28,0.00022191,2]
[359232431,1745854251416,-518.71,0.00022191,2]
[359232432,1745854251425,-513.9,0.00022191,2]
[359232433,1745854251435,-400.0,0.00022191,2]
[359232434,1745854251444,-400.0,0.00022191,2]
[359232435,1745854251453,-1806.3,0.00022191,2]
[359232436,1745854251465,-400.0,0.00022191,2]
[359232437,1745854251476,-400.0,0.00022191,2]
[359232438,1745854251485,-421.17,0.00022191,2]
[359232439,1745854251493,-1091.49,0.00022191,2]
[359232440,1745854251503,-400.0,0.00022191,2]
[359232441,1745854251512,-400.0,0.00022191,2]
[359232442,1745854251521,-400.0,0.00022191,2]
[359232443,1745854251529,-400.0,0.00022191,2]
[359232444,1745854251538,-400.0,0.00022191,2]
[359232445,1745854251547,-400.0,0.00022191,2]
[359232446,1745854251556,-477.5,0.00022191,2]
[359232447,1745854251565,-400.0,0.00022191,2]
[359232448,1745854251575,-465.93,0.00022191,2]
[359232449,1745854251585,-400.0,0.00022191,2]
[359232450,1745854251595,-400.0,0.00022191,2]
[359232451,1745854251604,-400.0,0.00022191,2]
[359232452,1745854251614,-400.0,0.00022191,2]
[359232453,1745854251623,-400.0,0.00022191,2]
[359232454,1745854251633,-400.0,0.00022191,2]
[359232455,1745854251642,-400.23,0.00022191,2]
[359232456,1745854251652,-400.0,0.00022191,2]
[359232457,1745854251662,-400.0,0.00022191,2]
[359232458,1745854251670,-400.0,0.00022191,2]
[359232459,1745854251679,-1090.29,0.00022191,2]
[359232460,1745854251688,-400.0,0.00022191,2]
[359232461,1745854251699,-400.0,0.00022191,2]
[359232462,1745854251708,-899.92,0.00022191,2]
[359232463,1745854251718,-400.0,0.00022191,2]
[359232464,1745854251728,-400.0,0.00022191,2]
[359232465,1745854251737,-723.5,0.00022191,2]
[359232466,1745854251746,-400.0,0.00022191,2]
[359232467,1745854251755,-400.0,0.00022191,2]
[359232468,1745854251765,-400.0,0.00022191,2]
[359232469,1745854251775,-852.31,0.00022191,2]
[359232470,1745854251785,-400.0,0.00022191,2]
[359232471,1745854251795,-400.0,0.00022191,2]
[359232472,1745854251804,-400.0,0.00022191,2]
[359232473,1745854251813,-151.0,0.00022191,7]
[359232474,1745854251823,-268.54528,0.00022191,7]
[359232475,1745854251833,-400.0,0.00022191,2]
[359232476,1745854251843,-400.0,0.00022191,2]
[359232477,1745854251950,-2056.18,0.00022191,2]
[359232478,1745854251960,-400.0,0.00022191,2]
[359232479,1745854251972,-421.62,0.00022191,2]
[359232480,1745854251982,-400.0,0.00022191,2]
[359232481,1745854251992,-676.77,0.00022191,2]
[359232482,1745854252002,-400.0,0.00022191,2]
[359232483,1745854252011,-400.0,0.00022191,2]
[359232484,1745854252021,-400.0,0.00022191,2]
[359232485,1745854252030,-400.0,0.00022191,2]
[359232486,1745854252040,-363.55207373,0.00022191,2]
[359232487,1745854252049,-400.0,0.00022191,2]
[359232488,1745854252059,-616.91,0.00022191,2]
[359232489,1745854252068,-203.50708509,0.00022191,2]
[359232490,1745854252077,-400.0,0.00022191,2]
[359232491,1745854252087,-762.06,0.00022191,2]
[359232492,1745854252096,-206.66533246,0.00022191,2]
[359232493,1745854252105,-400.0,0.00022191,2]
[359232494,1745854252114,-308.59906571,0.00022191,2]
[359232495,1745854252123,-400.0,0.00022191,2]
[359232496,1745854252133,-400.0,0.00022191,2]
[359232497,1745854252142,-682.82,0.00022191,2]
[359232498,1745854252151,-400.0,0.00022191,2]
[359232499,1745854252161,-754.52,0.00022191,2]
[359232500,1745854252170,-400.0,0.00022191,2]
[359232501,1745854252179,-400.0,0.00022191,2]
[359232502,1745854252189,-564.2,0.00022191,2]
[359232503,1745854252198,-400.0,0.00022191,2]
[359232504,1745854252208,-400.0,0.00022191,2]
[359232505,1745854252219,-400.0,0.00022191,2]
[359232506,1745854252228,-400.0,0.00022191,2]
[359232507,1745854252238,-400.0,0.00022191,2]
[359232508,1745854252248,-407.34,0.00022191,2]